bitfinex/quotes_ETHUSD_20241212
["timestamp","ask_amount","ask_price","bid_price","bid_amount"]
[1733985047351,2.29954593,3926.8,3925.8,0.8104]
[1733985047556,0.87344753,3926.7,3925.8,0.8104]
[1733985047756,1.24268686,3926.8,3925.8,0.8104]
[1733985047987,1.5166674,3926.7,3925.8,0.8104]
[1733985048154,0.66605716,3926.7,3925.8,0.8104]
[1733985048366,0.66605716,3926.7,3925.8,1.33011389]
[1733985048670,2.54681,3926.5,3925.8,0.8104]
[1733985048864,0.02406088,3926.4,3925.6,2.8155453]
[1733985049067,0.45114782,3926.4,3925.6,2.8155453]
[1733985050153,0.45114782,3926.4,3925.5,0.8104]
[1733985050671,2.91709833,3926.7,3925.5,0.8104]
[1733985050850,2.5468,3926.5,3925.5,0.8104]
[1733985051057,0.7541,3926.3,3925.5,0.8104]
[1733985051252,0.02406046,3926.2,3925.5,0.8104]
[1733985052195,0.02406046,3926.2,3925.5,3.8104]
[1733985052489,0.7541,3926.6,3925.6,2.8155453]
[1733985052688,0.0240611,3926.5,3925.8,3.7772]
[1733985052895,1.31025328,3926.9,3925.8,6.32443]
[1733985053187,0.02397424,3926.8,3925.9,2.54716]
[1733985053390,0.02397424,3926.8,3926.0,8.3626553]
[1733985053603,0.7834,3927.0,3926.1,0.7772]
[1733985053789,0.02397403,3926.7,3926.1,0.7772]
[1733985054102,0.7834,3927.0,3926.1,0.7772]
[1733985054306,0.57397445,3926.9,3926.1,0.7772]
[1733985055190,0.02397445,3926.9,3926.1,0.7772]
[1733985055595,0.55,3927.2,3926.1,0.7772]
[1733985055799,0.0232105,3926.8,3926.1,0.7772]
[1733985055995,0.7834,3927.3,3926.2,0.02546919]
[1733985056199,0.02321029,3926.7,3926.5,0.7772]
[1733985056395,0.7834,3927.3,3926.5,0.7772]
[1733985056772,0.02321136,3927.2,3926.5,0.7772]
[1733985057349,2.54635,3927.2,3926.5,0.7772]
[1733985057607,0.332975,3927.1,3926.5,0.7772]
[1733985057914,0.35651859,3927.1,3926.5,0.7772]
[1733985059508,2.90294859,3927.1,3926.1,0.7772]
[1733985060012,0.35651859,3927.1,3926.1,0.7772]
[1733985060215,0.02354359,3927.1,3926.1,0.7772]
[1733985060381,0.02354359,3927.1,3926.2,3.0]
[1733985060785,0.55,3927.4,3926.4,0.7772]
[1733985060986,0.02388167,3927.0,3926.4,0.7772]
[1733985061201,0.55,3927.6,3926.4,0.7772]
[1733985061501,2.54634,3927.2,3926.4,0.7772]
[1733985061701,0.02388188,3927.1,3926.4,0.7772]
[1733985061897,2.54654,3926.9,3926.1,3.7772]
[1733985062209,0.02388124,3926.8,3926.1,3.7772]
[1733985062409,0.02388124,3926.8,3926.1,3.0]
[1733985062609,2.54689,3926.4,3925.8,0.7772]
[1733985062930,0.0239035,3926.3,3925.6,2.8155453]
[1733985064331,2.54707,3926.1,3925.5,0.7772]
[1733985064533,0.57389119,3926.0,3925.5,0.7772]
[1733985065042,0.02389119,3926.0,3925.5,0.7772]
[1733985065535,0.02389098,3925.9,3925.5,0.7772]
[1733985065750,0.55,3926.1,3925.5,0.7772]
[1733985066049,0.7834,3926.4,3925.5,0.7772]
[1733985066050,0.02389119,3926.0,3925.5,0.7772]
[1733985066199,0.57389119,3926.0,3925.5,0.7772]
[1733985066401,0.7834,3925.9,3925.2,0.7772]
[1733985066635,0.68334,3925.8,3924.9,0.90996059]
[1733985067001,2.54738,3925.6,3924.9,0.90996059]
[1733985067330,0.57348186,3925.5,3924.9,0.90996059]
[1733985067850,0.02348186,3925.5,3924.9,0.90996059]
[1733985068642,0.55,3925.7,3924.9,0.90996059]
[1733985068842,0.02348165,3925.4,3924.9,0.90996059]
[1733985069009,0.55,3925.7,3924.9,0.90996059]
[1733985069544,0.02348207,3925.6,3924.9,0.90996059]
[1733985070737,0.55,3925.8,3924.9,0.13276059]
[1733985070935,0.02348229,3925.7,3924.9,0.13276059]
[1733985072713,0.02348229,3925.7,3924.9,2.68057059]
[1733985072922,0.7834,3925.9,3925.0,3.7986]
[1733985073232,0.02265418,3925.8,3925.0,3.7986]
[1733985074178,0.02265418,3925.8,3925.0,0.7986]
[1733985074319,0.57265418,3925.8,3925.0,0.7986]
[1733985074949,0.9629756,3925.8,3925.0,0.7986]
[1733985075136,0.57265418,3925.8,3925.0,0.7986]
[1733985075529,0.57265418,3925.8,3924.9,0.13276059]
[1733985077365,2.54744,3925.5,3924.9,0.13276059]
[1733985077747,0.57261832,3925.4,3924.9,0.13276059]
[1733985077954,0.55,3925.2,3924.9,0.13276059]
[1733985078122,0.02261768,3925.1,3924.9,0.13276059]
[1733985081861,0.55,3925.2,3924.9,0.13276059]
[1733985083366,0.55,3925.0,3924.9,0.13276059]
[1733985083669,0.55,3924.6,3923.8,0.8125]
[1733985083841,0.55,3924.6,3924.0,0.13282541]
[1733985084666,0.7988,3924.5,3924.0,0.13282541]
[1733985085443,0.55,3924.4,3924.0,0.13282541]
[1733985087534,2.54829,3924.2,3924.0,0.13282541]
[1733985088473,1.58612095,3924.1,3924.0,0.13282541]
[1733985089737,2.20289007,3924.1,3924.0,0.13282541]
[1733985090278,0.55,3923.6,3923.0,0.13281239]
[1733985090436,0.7988,3923.7,3923.0,0.13281239]
[1733985090437,3.09895,3923.2,3923.0,0.13281239]
[1733985091185,0.55,3923.4,3923.0,0.13281239]
[1733985091333,0.55,3923.6,3923.0,0.13281239]
[1733985091672,0.55,3923.6,3923.0,0.94531239]
[1733985093069,0.55,3923.6,3923.0,0.13281239]
[1733985097348,0.55,3923.6,3923.1,0.8125]
[1733985097548,0.55,3923.6,3923.2,0.34944324]
[1733985098153,0.55,3923.6,3923.1,0.8125]
[1733985098352,0.7988,3924.1,3923.1,0.8125]
[1733985098353,0.55,3923.8,3923.1,0.8125]
[1733985098563,0.55,3923.7,3923.0,0.13281239]
[1733985098774,0.55,3923.5,3923.0,0.13281239]
[1733985104267,0.7962,3923.2,3922.2,0.51308699]
[1733985104469,0.7962,3923.2,3922.1,0.7743]
[1733985104470,0.55,3922.8,3922.1,0.7743]
[1733985104681,0.55,3922.8,3922.2,0.13286336]
[1733985105976,0.55,3923.0,3922.2,0.13286336]
[1733985106972,3.09907,3923.0,3922.2,0.13286336]
[1733985108175,0.55,3922.8,3922.2,0.13286336]
[1733985108374,0.55,3922.5,3922.2,0.13286336]
[1733985111207,0.55,3922.6,3922.2,0.13286336]
[1733985113610,3.09933,3922.6,3922.2,0.13286336]
[1733985113805,0.55,3922.6,3922.2,0.13286336]
[1733985114776,0.939546,3922.6,3922.2,0.13286336]
[1733985115290,3.09936,3922.6,3922.2,0.13286336]
[1733985115896,3.09936,3922.6,3921.8,0.7743]
[1733985116084,0.55,3922.6,3921.8,0.7743]
[1733985116283,0.55,3922.4,3921.8,0.7743]
[1733985118609,0.7962,3922.7,3921.8,0.7743]
[1733985118610,0.55,3922.6,3921.8,0.7743]
[1733985118907,0.939545,3922.6,3921.8,0.7743]
[1733985121280,0.939545,3922.6,3921.5,0.8003]
[1733985121516,3.09933,3922.6,3921.5,0.8003]
[1733985123715,0.55,3922.9,3921.9,2.54977]
[1733985123934,0.55,3922.9,3922.0,0.8003]
[1733985126629,0.7522,3922.6,3921.3,0.13286038]
[1733985126788,0.55,3922.1,3921.3,0.13286038]
[1733985126989,0.55,3921.9,3921.3,0.13286038]
[1733985132044,0.55,3921.6,3921.3,0.13286038]
[1733985132248,0.55,3921.4,3921.3,0.13286038]
[1733985133248,0.55,3921.4,3920.6,0.8178]
[1733985133400,0.55,3921.4,3921.0,0.13284071]
[1733985133605,0.004,3921.3,3921.0,0.13284071]
[1733985136250,0.55,3921.2,3921.0,0.13284071]
[1733985136563,0.860419,3921.1,3921.0,0.13284071]
[1733985136777,0.004,3921.3,3921.0,0.13284071]
[1733985137566,0.004,3921.3,3921.1,0.8178]
[1733985138920,0.004,3921.3,3921.2,3.0]
[1733985144571,0.004,3921.3,3921.2,3.8303]
[1733985145227,0.004,3922.0,3921.3,0.8303]
[1733985145536,0.004,3922.0,3921.9,9.1956253]
[1733985146051,0.004,3922.0,3921.9,3.0]
[1733985146255,0.004,3922.0,3921.6,3.8303]
[1733985146948,0.004,3922.0,3921.6,3.0]
[1733985148316,0.55,3922.3,3921.6,3.0]
[1733985148519,0.55,3922.3,3921.6,3.51921243]
[1733985148721,0.55,3922.3,3921.6,4.4076982]
[1733985149153,0.55,3922.3,3921.6,6.9576582]
[1733985151923,0.55,3922.3,3921.7,0.8303]
[1733985153634,2.09985986,3922.7,3921.8,2.54984]
[1733985153838,0.7852,3922.7,3921.8,3.61017835]
[1733985154842,0.55,3922.6,3921.8,1.06033835]
[1733985155042,0.55,3922.6,3921.7,0.8303]
[1733985156624,0.55,3922.6,3921.9,2.8155453]
[1733985158631,0.55,3922.9,3922.0,3.8303]
[1733985158840,1.43448603,3923.2,3922.4,3.8303]
[1733985158841,0.55,3923.2,3922.4,3.8303]
[1733985160062,0.55,3923.2,3922.4,3.855792]
[1733985160467,0.55,3923.2,3922.4,6.37973]
[1733985160765,0.55,3923.2,3922.4,7.29925753]
[1733985161355,0.55,3923.2,3922.4,4.74982753]
[1733985161685,0.55,3922.9,3922.0,3.0]
[1733985161840,2.54908,3923.0,3922.0,3.0]
[1733985161841,0.55,3922.7,3922.0,3.0]
[1733985164162,0.55,3922.7,3922.0,5.5497]
[1733985164375,0.55,3922.7,3922.0,2.45370831]
[1733985164935,0.7852,3922.3,3921.7,0.52051826]
[1733985165194,0.7852,3922.3,3921.3,2.68316061]
[1733985165195,3.0996,3922.2,3921.3,0.13300061]
[1733985165466,0.7852,3922.1,3921.5,0.50675932]
[1733985165654,0.55,3922.0,3921.5,0.50675932]
[1733985167349,0.55,3921.8,3921.3,0.13300061]
[1733985169353,0.55,3921.6,3921.3,0.13300061]
[1733985169557,1.3352,3921.4,3921.3,0.13300061]
[1733985173956,1.57176422,3921.4,3921.3,0.13300061]
[1733985174255,1.3352,3921.4,3921.3,0.13300061]
[1733985176790,1.57166248,3921.4,3921.3,0.13300061]
[1733985176965,0.55,3921.2,3920.4,0.8259]
[1733985177166,3.10027,3921.2,3920.4,0.8259]
[1733985178490,0.55,3921.0,3920.3,3.1327872]
[1733985181457,0.55,3921.0,3920.7,0.8259]
[1733985181694,0.7721,3921.8,3920.7,3.8259]
[1733985182070,3.76463976,3921.8,3920.7,3.8259]
[1733985182271,3.5283978,3921.8,3920.7,3.8259]
[1733985182871,0.55,3921.7,3920.8,2.55047]
[1733985183062,0.55,3921.7,3921.1,3.37617]
[1733985183264,1.58420406,3922.5,3921.1,3.37617]
[1733985183265,0.7721,3922.2,3921.5,3.0]
[1733985183460,1.58420406,3922.7,3921.8,2.8155453]
[1733985183461,0.7721,3922.6,3921.8,2.8155453]
[1733985183774,1.38742071,3922.6,3921.8,2.8155453]
[1733985183972,1.15114721,3922.6,3921.8,2.8155453]
[1733985184175,1.82823604,3922.9,3922.2,2.8155453]
[1733985184485,0.7721,3922.9,3922.2,2.8155453]
[1733985185376,0.7721,3922.9,3922.2,3.6414453]
[1733985186098,0.55,3922.8,3922.2,3.6414453]
[1733985187801,0.55,3923.2,3922.2,3.6414453]
[1733985187975,0.55,3923.2,3922.2,4.63861574]
[1733985187976,0.78641628,3923.2,3922.2,4.63861574]
[1733985188170,0.55,3923.2,3922.2,4.63861574]
[1733985188371,0.55,3923.2,3922.2,3.6414453]
[1733985189024,0.78639988,3923.2,3922.2,3.6414453]
[1733985189182,0.55,3923.2,3922.2,3.6414453]
[1733985190736,0.55,3923.2,3922.2,6.1910253]
[1733985192789,0.55,3923.2,3922.2,3.6414453]
[1733985193030,0.55,3923.0,3922.2,3.6414453]
[1733985193902,2.54901,3923.1,3922.2,3.6414453]
[1733985193903,0.55,3923.1,3922.2,3.6414453]
[1733985196892,0.55,3923.2,3922.2,3.6414453]
[1733985197498,3.09897,3923.2,3922.2,3.6414453]
[1733985199134,0.55,3923.2,3922.2,3.6414453]
[1733985199444,0.55,3923.2,3922.2,4.61057933]
[1733985201230,1.05613604,3923.6,3922.2,4.61057933]
[1733985201231,0.55,3923.5,3922.7,0.8141]
[1733985201390,0.55,3923.5,3922.3,0.02549264]
[1733985201391,1.05613604,3924.2,3923.4,2.8155453]
[1733985201591,1.58420406,3924.4,3923.4,2.8155453]
[1733985201592,0.23646764,3924.3,3923.6,0.8141]
[1733985201793,0.8173,3924.4,3923.6,0.8141]
[1733985202022,0.23650396,3924.5,3923.6,0.8141]
[1733985202327,0.23644915,3924.6,3923.8,2.8155453]
[1733985202536,0.8173,3924.7,3923.8,2.8155453]
[1733985202830,2.54789,3924.9,3923.9,0.7517]
[1733985202831,0.336519,3924.6,3923.9,0.7517]
[1733985203529,2.54815,3924.5,3923.9,0.7517]
[1733985203895,3.36435,3924.5,3923.9,0.7517]
[1733985204531,0.55,3924.4,3923.9,0.7517]
[1733985205194,0.55,3924.4,3924.1,0.5010866]
[1733985205403,0.55,3924.2,3924.1,0.5010866]
[1733985209631,0.55,3924.3,3924.1,0.5010866]
[1733985210457,0.55,3924.3,3923.9,0.7517]
[1733985210826,0.8162,3925.0,3924.3,0.7517]
[1733985211035,2.54708,3926.1,3925.0,0.7517]
[1733985211036,0.8162,3925.7,3925.0,0.7517]
[1733985211285,3.59996571,3926.0,3925.0,0.7517]
[1733985211429,0.23659571,3925.9,3925.0,0.7517]
[1733985211630,3.36337,3926.0,3925.0,0.7517]
[1733985211631,0.23659571,3925.8,3925.0,0.7517]
[1733985211952,2.54698,3926.3,3925.0,3.7517]
[1733985212130,0.58236831,3926.2,3925.7,2.8155453]
[1733985212461,0.236615,3926.6,3925.7,2.8155453]
[1733985212667,0.8162,3926.7,3925.7,2.8155453]
[1733985212854,3.36289,3926.7,3925.8,0.7517]
[1733985213055,2.54689,3926.4,3925.9,0.50837312]
[1733985213658,2.54693,3926.3,3925.4,3.7517]
[1733985213964,0.254693,3926.2,3925.4,3.7517]
[1733985214465,0.254693,3926.2,3925.6,0.51183699]
[1733985214466,0.55,3926.1,3925.6,0.51183699]
[1733985214831,0.55,3925.9,3925.6,0.51183699]
[1733985215486,0.55,3926.3,3925.6,0.51183699]
[1733985215671,0.55,3926.4,3925.7,2.8155453]
[1733985215877,2.54678,3926.6,3925.7,2.8155453]
[1733985215878,0.55,3926.2,3925.7,2.8155453]
[1733985216974,0.02233388,3926.1,3925.7,2.8155453]
[1733985218251,0.55,3926.0,3925.6,0.51183699]
[1733985218457,0.02268357,3925.9,3925.6,0.51183699]
[1733985219405,0.02268357,3925.9,3925.4,0.7517]
[1733985219587,0.55,3925.7,3925.4,0.7517]
[1733985220082,0.02268293,3925.6,3925.4,0.7517]
[1733985221918,0.55,3925.7,3925.4,0.7517]
[1733985222099,3.75448782,3926.7,3925.4,3.2992]
[1733985222419,0.23589484,3926.6,3925.8,0.7567]
[1733985222695,0.36129648,3926.5,3925.8,0.7567]
[1733985223297,0.55,3926.5,3925.8,0.7567]
[1733985223503,0.55,3926.3,3925.8,0.7567]
[1733985223807,2.54674,3926.6,3925.8,0.7567]
[1733985223808,0.55,3926.6,3925.8,0.7567]
[1733985224094,0.55,3926.4,3925.8,0.7567]
[1733985224599,0.55,3926.6,3925.8,0.7567]
[1733985224803,0.55,3926.4,3925.8,0.7567]
[1733985225471,0.8304,3926.7,3925.8,0.7567]
[1733985225472,0.55,3926.6,3925.8,0.7567]
[1733985225793,0.37742966,3926.8,3925.8,0.7567]
[1733985225794,0.55,3926.4,3925.8,0.7567]
[1733985225962,0.55,3926.7,3925.8,0.7567]
[1733985226167,0.55,3926.5,3925.8,0.7567]
[1733985226400,0.55,3926.3,3925.8,0.7567]
[1733985226759,0.55,3926.6,3925.8,0.7567]
[1733985226965,0.23601905,3926.5,3926.2,0.7567]
[1733985227320,2.54639,3927.2,3926.2,0.7567]
[1733985227321,0.23604044,3926.8,3926.2,0.7567]
[1733985227469,0.37742966,3927.2,3926.6,0.7567]
[1733985227668,3.76953263,3927.8,3926.6,0.7567]
[1733985227669,0.37742966,3927.7,3926.9,2.8155453]
[1733985227883,2.54616,3927.5,3926.9,2.8155453]
[1733985228078,2.54602,3927.7,3926.9,2.8155453]
[1733985228363,0.6139082,3927.6,3926.9,2.8155453]
[1733985228588,0.23611854,3927.5,3926.9,2.8155453]
[1733985228806,0.78611854,3927.4,3927.0,0.7567]
[1733985228973,0.55,3927.2,3927.0,0.7567]
[1733985229386,0.92778966,3927.5,3926.5,2.8155453]
[1733985229600,0.337642,3927.6,3926.5,2.8155453]
[1733985229601,0.55,3927.3,3926.5,0.7567]
[1733985229807,0.55,3927.1,3926.5,0.7567]
[1733985230106,0.55,3927.3,3926.5,0.7567]
[1733985230107,0.55,3926.9,3926.5,0.7567]
[1733985230818,0.54693061,3926.9,3926.5,0.7567]
[1733985231406,0.23645735,3926.8,3926.5,0.7567]
[1733985231620,0.23645735,3926.7,3926.5,0.7567]
[1733985231802,0.54693061,3926.9,3926.5,0.7567]
[1733985232002,0.23644279,3926.8,3926.5,0.7567]
[1733985232202,0.86962683,3926.9,3926.5,0.7567]
[1733985232494,0.23648577,3926.8,3926.5,0.7567]
[1733985232723,0.54693061,3926.9,3926.5,0.7567]
[1733985233229,0.23648775,3926.8,3926.5,0.7567]
[1733985233425,0.54693061,3926.9,3926.5,0.7567]
[1733985233737,0.23649509,3926.8,3926.5,0.7567]
[1733985233943,0.54693061,3926.9,3926.5,0.7567]
[1733985234124,0.23649532,3926.8,3926.5,0.7567]
[1733985234332,0.23655538,3926.7,3926.5,0.7567]
[1733985234633,0.49693061,3926.9,3926.5,0.7567]
[1733985234832,0.23655583,3926.8,3926.5,0.7567]
[1733985235034,0.37850245,3927.1,3926.5,0.7567]
[1733985235235,0.23656046,3927.0,3926.5,0.7567]
[1733985235438,0.337642,3927.6,3926.5,0.7567]
[1733985235439,2.92472577,3927.4,3926.5,0.7567]
[1733985235642,0.61509041,3927.3,3926.5,0.7567]
[1733985235938,0.337642,3927.6,3926.0,0.50318051]
[1733985235939,0.23657464,3927.2,3926.7,3.784]
[1733985236170,0.55,3927.6,3926.7,3.784]
[1733985236308,0.55,3927.4,3926.7,3.784]
[1733985236702,2.54568,3928.3,3926.7,3.784]
[1733985236703,2.7099778,3928.0,3927.1,0.784]
[1733985236957,0.6154939,3927.9,3927.1,0.784]
[1733985237107,0.6154939,3927.8,3927.1,0.784]
[1733985237302,0.23672842,3927.7,3927.1,0.784]
[1733985237527,0.23672842,3927.6,3927.1,0.784]
[1733985237772,0.23672842,3927.5,3927.1,0.784]
[1733985237916,0.23677885,3927.5,3927.1,1.28161778]
[1733985238241,0.3788539,3927.9,3927.1,1.28161778]
[1733985238446,0.55,3927.7,3927.1,1.28161778]
[1733985238614,0.55,3927.9,3927.2,0.784]
[1733985238816,0.55,3927.7,3927.2,0.784]
[1733985239030,0.23684787,3927.6,3927.2,0.784]
[1733985239243,0.55,3927.9,3927.2,0.784]
[1733985239419,0.55,3927.7,3927.2,0.784]
[1733985239612,0.23689993,3927.6,3927.2,0.784]
[1733985239815,0.23689993,3927.5,3927.2,0.784]
[1733985240024,0.55,3927.9,3927.2,0.784]
[1733985240317,0.55,3927.7,3927.2,0.784]
[1733985240526,0.23690524,3927.6,3927.2,0.784]
[1733985240861,0.23690524,3927.5,3927.2,0.784]
[1733985241066,0.55,3927.9,3927.2,0.784]
[1733985241208,0.61651013,3927.8,3927.2,1.74835931]
[1733985241408,0.23711928,3927.7,3927.2,1.74835931]
[1733985241629,0.23711928,3927.6,3927.4,2.8155453]
[1733985241830,0.23714795,3927.5,3927.2,0.784]
[1733985242037,0.23714795,3927.4,3927.2,0.784]
[1733985242347,0.37937559,3927.8,3927.2,0.784]
[1733985242533,0.23710441,3927.7,3927.2,0.784]
[1733985242717,0.23710441,3927.6,3927.2,0.784]
[1733985242916,0.25998831,3927.5,3927.2,0.784]
[1733985243111,0.02288158,3927.5,3927.2,0.784]
[1733985243429,0.5,3927.9,3927.2,0.784]
[1733985243753,3.09602,3927.7,3927.2,0.784]
[1733985243913,2.54621,3927.4,3926.9,0.784]
[1733985244112,3.35732724,3927.3,3926.5,0.784]
[1733985244312,0.55,3927.1,3926.5,0.784]
[1733985244515,0.2610166,3927.0,3926.5,0.784]
[1733985244749,0.23706297,3926.9,3926.5,0.784]
[1733985245064,0.02395363,3927.0,3926.5,0.784]
[1733985245302,3.09631,3927.3,3926.5,3.784]
[1733985245303,0.0239532,3926.8,3926.5,3.784]
[1733985245446,0.0239532,3926.8,3926.2,0.50331557]
[1733985245447,0.55,3926.8,3926.2,0.784]
[1733985245764,0.55,3926.6,3926.2,0.784]
[1733985246114,0.26104067,3926.5,3926.3,2.8155453]
[1733985246318,0.23711355,3926.4,3926.3,2.8155453]
[1733985246529,0.2610659,3926.4,3926.3,2.8155453]
[1733985246748,0.02395235,3926.4,3926.3,2.8155453]
[1733985247267,0.55,3926.8,3926.3,2.8155453]
[1733985247418,0.02395235,3926.4,3926.3,2.8155453]
[1733985247979,0.55,3926.7,3926.3,2.8155453]
[1733985248119,0.02395235,3926.4,3926.3,2.8155453]
[1733985249132,3.09667,3926.7,3926.3,2.8155453]
[1733985249448,3.09667,3926.7,3926.2,0.784]
[1733985249449,0.02395235,3926.4,3926.0,3.0]
[1733985249686,0.55,3926.5,3926.0,3.0]
[1733985249973,0.26063489,3926.4,3926.0,3.0]
[1733985250127,0.02346257,3926.4,3926.0,3.0]
[1733985253857,0.02346257,3926.4,3926.3,0.51815291]
[1733985254185,0.2607723,3926.4,3926.3,0.51815291]
[1733985255230,0.2607723,3926.4,3926.0,3.0]
[1733985255462,0.02346257,3926.4,3926.0,3.0]
[1733985255761,0.55,3926.7,3926.0,3.0]
[1733985255955,0.0228793,3926.3,3926.0,3.0]
[1733985256162,0.55,3926.7,3926.0,3.0]
[1733985256345,0.02287908,3926.2,3926.0,3.0]
[1733985256552,0.55,3926.7,3926.0,3.66448453]
[1733985256750,2.54662,3926.8,3926.0,3.66448453]
[1733985256751,0.02287887,3926.1,3926.0,3.0]
[1733985256958,0.55,3926.5,3926.0,3.0]
[1733985257130,0.23742344,3926.4,3926.0,3.0]
[1733985257462,0.0228793,3926.3,3926.0,3.0]
[1733985257664,0.55,3926.7,3926.0,3.0]
[1733985257850,0.55,3926.5,3926.0,3.0]
[1733985258048,0.23742348,3926.4,3926.0,3.0]
[1733985258368,0.02287951,3926.4,3926.0,3.0]
[1733985258564,0.02287951,3926.4,3925.9,3.6448453]
[1733985258727,0.55,3926.6,3925.9,3.6448453]
[1733985258931,0.26028166,3926.5,3925.9,3.6448453]
[1733985259132,0.23740194,3926.4,3925.9,3.6448453]
[1733985259334,0.0228793,3926.3,3925.9,6.90626839]
[1733985259669,0.7779,3927.3,3926.2,0.8293]
[1733985259870,0.61726733,3927.2,3926.4,2.8155453]
[1733985260042,0.23741051,3927.1,3926.5,0.8293]
[1733985260401,0.02287496,3927.0,3926.5,3.85476537]
[1733985260567,0.02287496,3927.0,3926.5,4.77648644]
[1733985260864,0.55,3927.4,3926.5,4.77648644]
[1733985261066,0.55,3927.2,3926.5,4.77648644]
[1733985261267,0.02287517,3927.1,3926.5,4.77648644]
[1733985261567,0.02287517,3927.1,3926.8,2.8155453]
[1733985261770,0.02287517,3927.1,3927.0,0.8293]
[1733985261931,0.23742794,3927.7,3927.0,0.8293]
[1733985262137,0.7779,3927.9,3927.0,0.8293]
[1733985262138,0.02287624,3927.6,3927.0,0.8293]
[1733985262491,0.7779,3927.9,3927.0,0.8293]
[1733985262649,0.02287666,3927.8,3927.0,0.8293]
[1733985262842,0.55,3927.7,3927.0,0.8293]
[1733985263038,0.02287624,3927.6,3927.0,0.8293]
[1733985263388,0.02287624,3927.6,3927.0,1.48488998]
[1733985263757,0.55,3927.8,3927.0,1.48488998]
[1733985263936,0.02287602,3927.5,3927.0,1.48488998]
[1733985264142,0.55,3927.8,3927.0,1.48488998]
[1733985264346,0.02287581,3927.4,3927.0,1.48488998]
[1733985264545,0.55,3927.8,3927.0,1.48488998]
[1733985264797,0.0228756,3927.3,3927.0,1.48488998]
[1733985264997,0.55,3927.8,3927.1,0.77148282]
[1733985265164,0.02333018,3927.2,3927.0,0.8293]
[1733985265362,0.55,3927.8,3927.0,0.8293]
[1733985265545,0.55,3927.9,3927.7,0.7968]
[1733985265746,0.1640978,3928.0,3927.7,0.7968]
[1733985266171,0.1640978,3928.0,3927.7,4.15803453]
[1733985266375,0.1640978,3928.0,3927.9,3.7968]
[1733985266846,0.1640978,3928.0,3927.9,3.82225307]
[1733985267346,0.1640978,3928.0,3927.9,3.7968]
[1733985267966,0.1640978,3928.0,3927.9,0.7968]
[1733985268165,0.1640978,3928.0,3927.9,1.19415798]
[1733985268357,0.1640978,3928.0,3927.9,4.19415798]
[1733985269175,0.1640978,3928.0,3927.9,4.69546736]
[1733985272850,0.1640978,3928.0,3927.9,1.69546736]
[1733985274968,0.1640978,3928.0,3927.9,2.0304454]
[1733985275172,0.1640978,3928.0,3927.9,2.0558999]
[1733985275488,0.1640978,3928.0,3927.9,2.05589831]
[1733985276190,0.1640978,3928.0,3927.9,2.38968469]
[1733985276665,0.1640978,3928.0,3927.9,2.36423178]
[1733985276866,0.1640978,3928.0,3927.9,2.38968482]
[1733985277066,0.1640978,3928.0,3927.9,2.36423178]
[1733985277255,0.1640978,3928.0,3927.9,2.38968484]
[1733985277453,0.1640978,3928.0,3927.9,5.38968484]
[1733985277858,0.1640978,3928.0,3927.9,5.38968483]
[1733985278279,0.1640978,3928.0,3927.9,5.36423178]
[1733985278477,0.1640978,3928.0,3927.9,5.38968503]
[1733985278854,0.1640978,3928.0,3927.9,5.36423178]
[1733985279059,0.1640978,3928.0,3927.9,5.38968485]
[1733985279883,0.1640978,3928.0,3927.9,5.38968448]
[1733985280460,0.1640978,3928.0,3927.9,5.36423178]
[1733985281017,0.1640978,3928.0,3927.9,5.38968437]
[1733985281306,0.1640978,3928.0,3927.9,5.36423178]
[1733985281617,0.1640978,3928.0,3927.9,5.38968441]
[1733985281908,0.1640978,3928.0,3927.9,5.36423178]
[1733985282600,0.1640978,3928.0,3927.9,5.38968446]
[1733985282798,0.1640978,3928.0,3927.9,5.36423178]
[1733985283479,0.1640978,3928.0,3927.9,5.38968446]
[1733985284869,0.1640978,3928.0,3927.9,5.51472885]
[1733985285170,0.1640978,3928.0,3927.9,5.48927617]
[1733985285565,0.1640978,3928.0,3927.9,8.03515617]
[1733985286399,3.1,3929.1,3928.9,6.34204]
[1733985286701,5.79494832,3930.3,3929.8,9.1569953]
[1733985286912,5.79494832,3930.3,3929.8,10.03145779]
[1733985287120,5.79494832,3930.3,3929.8,11.28908857]
[1733985287566,0.7867,3930.1,3929.8,6.24409217]
[1733985287772,0.7867,3930.1,3929.8,2.8155453]
[1733985288204,0.7867,3930.1,3929.2,0.42854687]
[1733985288523,5.79494832,3930.3,3929.1,2.8155453]
[1733985288524,0.7867,3929.8,3929.1,2.8155453]
[1733985288672,0.55,3929.6,3929.1,2.8155453]
[1733985289086,0.55,3929.6,3928.4,2.54556]
[1733985289087,0.7867,3929.5,3928.4,2.54556]
[1733985289321,0.55,3929.4,3928.9,2.8155453]
[1733985289722,0.7867,3929.5,3929.3,2.8155453]
[1733985290327,0.02337756,3929.4,3929.3,2.8155453]
[1733985292573,0.7867,3929.8,3929.3,2.8155453]
[1733985292770,0.02337756,3929.4,3929.3,2.8155453]
[1733985292982,1.02037,3929.8,3929.3,2.8155453]
[1733985293205,0.02337756,3929.4,3929.3,2.8155453]
[1733985293395,1.02037,3929.8,3929.3,2.8155453]
[1733985293597,0.02337756,3929.4,3929.3,2.8155453]
[1733985293805,1.02037,3929.8,3929.3,2.8155453]
[1733985293983,0.02395989,3929.4,3929.3,2.8155453]
[1733985294175,0.7867,3929.8,3929.3,2.8155453]
[1733985294376,0.02396572,3929.4,3929.1,2.5451]
[1733985294577,0.7867,3929.8,3929.3,2.8155453]
[1733985294799,0.55,3929.8,3929.3,2.8155453]
[1733985295002,0.02396636,3929.7,3929.3,2.84099215]
[1733985295403,0.55,3929.8,3929.3,3.23427876]
[1733985295605,1.55,3929.9,3929.7,2.8155453]
[1733985295995,0.55,3929.8,3929.7,2.8155453]
[1733985297208,1.3319,3929.8,3929.2,2.8155453]
[1733985297411,0.55,3929.6,3929.2,2.8155453]